Cogmind - Beta 16.1 @@@ ROGUE MODE // 2026.03.20 @ 17:20:46 Player: ash Result: Self-destructed Performance ------------- Evolutions (1) 500 Regions Visited (2) 400 Robots Destroyed (14) 70 Value Destroyed (337) 337 Prototype IDs (2) 40 Alien Tech Used (0) 0 Bonus (0) 0 TOTAL SCORE: 1347 Bonus ------- None Cogmind --------- Core Integrity 278/400 Matter 220/300 Energy 250/250 System Corruption 5% Temperature Warm (115) Movement Core (450) Ox8 Location -9/Materials Parts ------- > --- POWER (1) -------- Ion Engine > --- PROPULSION (2) --- (None) > --- UTILITY (4) ------ Large Storage Unit Terrain Scan Processor > --- WEAPON (2) ------- Medium Laser > --- INVENTORY (15) --- Light Ion Engine Aluminum Leg Disposable Heat Sink Disposable Heat Sink Terrain Scanner Small Laser Particle Gun Light Assault Rifle Improved Light Cannon Hammer Peak State ------------ > --- POWER ------------ Ion Engine > --- PROPULSION ------- Aluminum Leg Aluminum Leg > --- UTILITY ---------- Large Storage Unit Terrain Scanner Terrain Scan Processor Terrain Scan Processor > --- WEAPON ----------- Particle Gun Light Assault Rifle > --- INVENTORY -------- Light Ion Engine Aluminum Leg Aluminum Leg Aluminum Leg Wheel Compact Wheel Heat Sink Light Armor Plating Medium Laser Small Laser Particle Gun Assault Rifle [Rating: 13] Favorites ----------- Power Ion Engine Engine Ion Engine Propulsion Aluminum Leg Leg Aluminum Leg Wheel Wheel Utility Large Storage Unit Device Heat Sink Storage Large Storage Unit Processor Terrain Scan Processor Protection Light Armor Plating Weapon Particle Gun Energy Gun Particle Gun Ballistic Gun Light Assault Rifle Build | -11 -10 -9 ------- Run | Yrd Mat Mat Slots Evolved 2 | . . 2 Power . | . . . Propulsion . | . . . Utility 2 | . . 2 Weapon . | . . . Parts Attached 16 | . 5 11 Power 1 | . 1 . Engine 1 | . 1 . Core . | . . . Reactor . | . . . Propulsion 6 | . . 6 Treads . | . . . Leg 4 | . . 4 Wheel 2 | . . 2 Hover . | . . . Flight . | . . . Utility 6 | . 3 3 Device 2 | . 1 1 Storage 1 | . 1 . Processor 2 | . . 2 Hackware . | . . . Protection 1 | . 1 . Artifact . | . . . Weapon 3 | . 1 2 Energy Gun 2 | . 1 1 Energy Cannon . | . . . Ballistic Gun 1 | . . 1 Ballistic Cannon . | . . . Launcher . | . . . Special Weapon . | . . . Impact Weapon . | . . . Slashing Weapon . | . . . Piercing Weapon . | . . . Special Melee Weapon . | . . . Unidentified Prototypes . | . . . Parts Lost 8 | . 1 7 Power 1 | . 1 . Propulsion 3 | . . 3 Utility 2 | . . 2 Weapon 2 | . . 2 Highest Loss Streak 4 | . 1 4 To Critical Strikes . | . . . Average Backups 11 | . 11 12 Power . | . . 1 Propulsion 4 | . 5 3 Utility 2 | . 1 2 Weapon 3 | . 3 4 Tool/Special . | . . . Unused Backups 15 | . 6 9 Power 2 | . 1 1 Propulsion 5 | . 4 1 Utility 3 | . . 3 Weapon 5 | . 1 4 Tool/Special . | . . . Average Slot Usage (%) 94 | . 98 84 Engine 13 | . 14 11 Leg 24 | . 28 15 Wheel 1 | . . 4 Device 10 | . 12 7 Storage 13 | . 14 11 Processor 3 | . . 13 Protection 1 | . . 2 Energy Gun 13 | . 14 10 Ballistic Gun 12 | . 14 8 Peak Build Rating 13 | . 9 13 Average Rating 9 | . 8 10 On Entrance 7 | 6 6 9 Avg Prop Armor Cover (%) 9 | . . 9 Naked Turns . | . . . Heaviest Build 34 | 13 32 34 Greatest Support 20 | 20 20 20 Greatest Overweight (x) 2 | . 1 2 Average Overweight (x) 1 | . . 1 Largest Inventory Capacity 15 | . 15 15 Average Capacity 14 | . 14 15 Most Carried 15 | . 14 15 Average Carried 11 | . 11 12 Final Capacity 15 | 8 15 15 Final Carried 13 | 6 13 10 Class Distribution -------------------- 100% | Mutant Dominant Class ---------------- Mutant | -10/Materials Mutant | -9/Materials Resources | -11 -10 -9 ----------- Run | Yrd Mat Mat Matter Collected 377 | 186 109 82 Remotely . | . . . Salvage Created 440 | . 311 129 Parts 35 | . 27 8 Haulers Intercepted . | . . . Recyclers Shooed 2 | . 2 . Parts Field Recycled . | . . . Retrieved Matter . | . . . Parts Self-Destructed . | . . . Prevented . | . . . Parts Restored . | . . . Kills | -11 -10 -9 ------- Run | Yrd Mat Mat Combat Hostiles Destroyed 11 | . 8 3 Guns 11 | . 8 3 Classes Destroyed 5 | . 4 1 Worker 2 | . 2 . Builder 1 | . 1 . Swarmer 3 | . 3 . Grunt 7 | . 5 2 Brawler 1 | . . 1 Best Kill Streak 3 | . 3 3 Combat Bots Only 3 | . 3 3 Max Kills in Single Turn 1 | . 1 1 Gunslinging . | . . . Exploded . | . . . Melee . | . . . Uniques/NPCs Destroyed . | . . . Combat | -11 -10 -9 -------- Run | Yrd Mat Mat Hostile Shots Fired 102 | . 56 46 Missed 30 | . 14 16 Hits 72 | . 42 30 Melee 10 | . . 10 Projectile 62 | . 42 20 Critical Strikes 6 | . 1 5 Damage Taken 1081 | . 513 568 Core 188 | . 66 122 Absorbed by Shields . | . . . Core Remaining (%) 86 | 100 73 . Volleys Fired 54 | . 43 11 Largest 2 | . 2 2 Hottest 85 | . 85 85 Shots Fired 107 | . 85 22 Gun 107 | . 85 22 Cannon . | . . . Launcher . | . . . Special . | . . . Kinetic 54 | . 43 11 Thermal 53 | . 42 11 Explosive . | . . . Electromagnetic . | . . . Robot Hit Streak 7 | . 7 7 Robot Miss Streak 5 | . 5 2 Penetration Max . | . . . Secondary Targets 3 | . 2 1 Max Gunslinging Chain 1 | . 1 1 Shots Hit Robots 66 | . 52 14 Core Hits 27 | . 23 4 Critical Kills . | . . . Critical Parts Destroyed . | . . . Critical Strikes 2 | . 1 1 Burn 2 | . 1 1 Melee Attacks . | . . . Impact . | . . . Slashing . | . . . Piercing . | . . . Sneak Attacks . | . . . Combat Hostiles . | . . . Follow-up Attacks . | . . . Damage Inflicted 793 | . 602 191 Guns 790 | . 599 191 Cannons . | . . . Explosions . | . . . Melee . | . . . Ramming 3 | . 3 . Kinetic 320 | . 225 95 Thermal 470 | . 374 96 Explosive . | . . . Electromagnetic . | . . . Impact . | . . . Slashing . | . . . Piercing . | . . . Highest Corruption 5 | . . 5 Average Corruption 4 | . . 4 Corruption Purged . | . . . Corruption Blocked . | . . . Effects 6 | . . 6 Message Errors 1 | . . 1 Matter Fused 3 | . . 3 Heat Flow Errors 1 | . . 1 Energy Discharges 1 | . . 1 Overload Shots . | . . . Overflow Damage . | . . . Projectiles . | . . . Explosions . | . . . Melee . | . . . Knockbacks . | . . . Impact . | . . . Kinetic . | . . . Secondary . | . . . Self-Inflicted Damage . | . . . Shots . | . . . Rammed . | . . . Targets Rammed 3 | . 3 . Kicked 3 | . 3 . Crushed . | . . . Highest Temperature 220 | . 220 155 Average Temperature 71 | . 72 60 Received Heat Transfer 387 | . 261 126 Siege Activations . | . . . Martial Activations . | . . . Shielding Activations . | . . . Robots Disrupted . | . . . Combat Hostiles . | . . . Robots Corrupted . | . . . Combat Hostiles . | . . . Parts Fried . | . . . Impact Corruptions . | . . . Robots Melted . | . . . Combat Hostiles . | . . . Parts Melted . | . . . Heat Transferred 1332 | . 1036 296 Parts Sabotaged . | . . . Parts Stolen . | . . . Parts Stripped . | . . . Power Chain Reactions . | . . . Alert | -11 -10 -9 ------- Run | Yrd Mat Mat Maximum Alert Level . | . . . Low Security (%) 100 | . 100 100 Level 1 . | . . . Level 2 . | . . . Level 3 . | . . . Level 4 . | . . . Level 5 . | . . . High Security . | . . . Max Security . | . . . Peak Influence 82 | . 80 82 Initial . | . . . Average 17 | . 18 15 Influence Increases 359 | . 227 132 Destroy 0b10 Robot/C 220 | . 160 60 Destroy 0b10 Robot/NC 15 | . 15 . Destroy Leader 50 | . 40 10 Successful Hack 12 | . 12 . Destroy Structure 2 | . . 2 Lose Combat Pursuer 60 | . . 60 Influence Decreases 354 | . 227 127 Time Decay 277 | . 217 60 Lost Part 77 | . 10 67 Squads Dispatched 2 | . 2 . Investigation . | . . . Extermination . | . . . Reinforcement 2 | . 2 . Assault . | . . . Garrison . | . . . Intercept . | . . . Searches Triggered . | . . . Construction Impeded . | . . . Haulers Reinforced . | . . . Active Scanning Responses . | . . . Cargo Convoy Interrupts . | . . . Stealth | -11 -10 -9 --------- Run | Yrd Mat Mat Distress Signals 1 | . . 1 Communications Jammed . | . . . Distress Signals . | . . . Times Spotted 29 | . 16 13 Peak Tracking Total 7 | . 3 7 Tactical Retreats 3 | . . 3 Traps | -11 -10 -9 ------- Run | Yrd Mat Mat Traps Triggered . | . . . Indirectly . | . . . Trap Hack Attempts . | . . . Triggered . | . . . Disarmed . | . . . Reprogrammed . | . . . Reused . | . . . Traps Extracted . | . . . Installed . | . . . Triggered . | . . . Machines | -11 -10 -9 ---------- Run | Yrd Mat Mat Machines Disabled . | . . . Max in Single Turn . | . . . Machines Repaired . | . . . Machines Dismantled . | . . . Machines Sabotaged . | . . . Overloaded Fab Kills . | . . . Hacking | -11 -10 -9 --------- Run | Yrd Mat Mat Machines Accessed 4 | . 4 . Terminals 4 | . 4 . Fabricators . | . . . Repair Stations . | . . . Recycling Units . | . . . Scanalyzers . | . . . Garrison Access . | . . . Total Hacks 11 | . 11 . Successful 4 | . 4 . Failed 7 | . 7 . Catastrophic 2 | . 2 . Database Lockouts . | . . . Manual 5 | . 5 . Terminals 11 | . 11 . Fabricators . | . . . Repair Stations . | . . . Recycling Units . | . . . Scanalyzers . | . . . Garrison Access . | . . . Terminal Hacks 4 | . 4 . Prototype ID Bank 1 | . 1 . Terminal Index 1 | . 1 . Registered Components 1 | . 1 . Zone Layout 1 | . 1 . Fabricator Hacks . | . . . Repair Station Hacks . | . . . Recycling Unit Hacks . | . . . Scanalyzer . | . . . Garrison Access Hacks . | . . . Unauthorized Hacks . | . . . Terminals . | . . . Fabricators . | . . . Repair Stations . | . . . Recycling Units . | . . . Scanalyzers . | . . . Garrison Access . | . . . Data Cores Recovered . | . . . Used . | . . . Hacking Detections 4 | . 4 . Full Trace Events . | . . . Feedback Events . | . . . Feedback Blocked . | . . . Robot Schematics Acquired . | . . . Robots Built . | . . . Authchips . | . . . Time . | . . . Total Robot Build Rating . | . . . Part Schematics Acquired . | . . . Parts Built . | . . . Authchips . | . . . Time . | . . . Total Part Build Rating . | . . . Part Studies Acquired . | . . . Parts Repaired . | . . . Time . | . . . Parts Recycled . | . . . Recycled Matter . | . . . Retrieved Matter . | . . . Retrieved Components . | . . . Parts Scanalyzed . | . . . Part Schematics Acquired . | . . . Parts Damaged . | . . . Bothacking | -11 -10 -9 ------------ Run | Yrd Mat Mat Used RIF Installer . | . . . Robots Hacked . | . . . Non-combat . | . . . Combat . | . . . Robot Hacks Applied . | . . . Relay Couplers Released . | . . . Fabnet Peak Effective % . | . . . Robots Rewired . | . . . Allies Hacked . | . . . Hacks Repelled . | . . . Allies | -11 -10 -9 -------- Run | Yrd Mat Mat Total Allies . | . . . Largest Group . | . . . Highest-Rated Group . | . . . Highest-Rated Ally . | . . . Total Orders . | . . . Ally Attacks . | . . . Total Damage . | . . . Kills . | . . . Allies Corrupted . | . . . Allies Melted . | . . . Intel | -11 -10 -9 ------- Run | Yrd Mat Mat Active Infowar (turns) 127 | . . 127 Terrain 127 | . . 127 Robot Analysis Total . | . . . Derelict Logs Recovered . | . . . Drone Launches . | . . . Drone Recoveries . | . . . Exploration | -11 -10 -9 ------------- Run | Yrd Mat Mat Turns Passed 1143 | . 827 316 Spaces Moved 538 | 1 368 169 Core . | . . . Treads . | . . . Legs 442 | 1 368 73 Wheels 96 | . . 96 Hover . | . . . Flight . | . . . Fastest Speed 110 | 120 120 110 Average Speed 171 | 120 182 145 Slowest Speed 190 | 120 190 190 Overloaded Moves . | . . . Propulsion Burnouts . | . . . Robots Hopped . | . . . Potential Cave-ins . | . . . Cave-ins Triggered . | . . . Exploration Rate (%) 27 | 2 57 23 Regions Visited 2 Branch Regions . Pre-discovered Areas . | . . . Known Exits Taken . | . . . Unknown Exits Taken 2 | 1 1 . Scrap Searched . | . . . Spaces Dug . | . . . Terrain Destroyed . | . . . Melee . | . . . Projectile . | . . . AOE . | . . . Terrain Rammed . | . . . Walls Destroyed . | . . . Machines Disabled . | . . . Actions | -11 -10 -9 --------- Run | Yrd Mat Mat Total 657 | . 442 215 Wait 24 | . 12 12 Move 536 | . 367 169 Hop . | . . . Pick Up 14 | . 8 6 Fast Attach 2 | . 2 . Attach 9 | . 1 8 Detach 2 | . 1 1 Swap 9 | . 3 6 Drop 4 | . 2 2 Fire 54 | . 43 11 Melee . | . . . Ram . | . . . Kick 3 | . 3 . Crush . | . . . Escape Stasis . | . . . Rewire . | . . . Trap . | . . . Miscellaneous . | . . . Route ------- -11/Scrapyard -10/Materials (discovered 4 exits: [*Mat x2] / [*Min x2]) -9/Materials History --------- Turn | Location | Event 1 | -11/Scrapyard | Discovered new exit (range 0) 1 | -11/Scrapyard | Entered Materials 1 | -10/Materials | Discovered new exit (range 8) 131 | -10/Materials | Discovered new exit (range 13) 185 | -10/Materials | Discovered new exit (range 16) 307 | -10/Materials | Build established: Mutant 672 | -10/Materials | Discovered new exit (range 13) 828 | -10/Materials | Entered another Materials area 828 | -9/Materials | Evolved 2 slots: Utility x2 1047 | -9/Materials | Lost 4 parts (1n2u1w) 1144 | -9/Materials | Self-destructed Last Messages --------------- 01012_ Knocked back. 01012_ Lgt. Armor Plating destroyed. 01016_ Heat Sink destroyed. 01023_ Aluminum Leg severed. 01028_ System corrupted: Matter fused (-8). 01048_ System corrupted: Matter fused (-6). 01066_ KPBWEKQUTHG=FZGIRKC&FPGW 41AEB YLH7& 01074_ R-06 Scavenger collects Ion Engine. 01074_ Com. Wheel destroyed. 01075_ Aluminum Leg severed. 01077_ Assault Rifle destroyed. 01078_ R-06 Scavenger collects Heat Sink. 01081_ R-06 Scavenger collects Lgt. Treads. 01086_ R-06 Scavenger collects Sml. Laser. 01093_ System corrupted: Matter fused (-10). 01095_ W-16 Scout sends out distress signal. 01108_ Critical hit (Burn: +37). 01119_ System corrupted: Energy discharge (-50). 01141_ System corrupted: Heat flow error (+178). 01143_ Wheel destroyed. Map ----- +----------------------------------------------------+ | ??????????????????????????????????? | | ??????????????????????????????????? | | ??????????????????????????????????? | | ??????????????????????????????????? | | ??????????????????????????????????? | | ??????????????????????????????????? | | ??????????????????????????????????? | | ??????????????????????????????????? | | ??????????????????????????????????? | | ??????????????????????????????????? | | ??????????????????????????????????? | | ??????????????????????????????????? | | ??????????????????????????????????? | | ??????????????????????????????????? | | ?????########?????????????????????? | | ?????# #?????????????????????? | | ?????# !!! ##################????? | | ?????# !!! + #????? | | ?????#! !! ####### ######## #????? | | ?????# #?????# #??#####+#????? | | ?????# #?????# #? * ????? | | ?????####+###?????# #?"" #???? | | ??????# #???### # "Y #???? | | ??????# ##### # "" #???? | | ??????# gg g + """ ????? | | ??????# @ ##### # """ ????? | | ??????# #???# # """ ????? | | ??????###+###???# #? #???? | | ??????? ????# #?#########???? | | ?????[! """ ??# #?????????????? | | ??? [ """ # #?????????????? | | ??## """ # #?????????????? | | ???# ! # #?????????????? | | ???############## #?????????????? | | ????????????????# #?????????????? | | ??????????? "???# #?"???????????? | | ????????????????# #?????????????? | | ?????????? ?????# #???? #???????? | | ??????????? ? ? # # ?"" #???????? | | ???????? ???? ??# # """ #???????? | | ????#?????????? + / " #?"?????? | | ???#?????? """ # # #???????? | | ??#???########### # ?! #???????? | | ???????# == # ##########+###? | | ?#?##??# """ # | | ?#????## """ # # | | ?##????# """ [# # | | ?#?? ??# [%+ #############+? | | ??? ??## """ =#% #?????????????? | | ???? ## """ #= # ?"""????????? | +----------------------------------------------------+ Best States ------------- Heat Dissipation 38 Energy Generation 10 Energy Capacity 250 Matter Stores 300 Matter Capacity 300 Sight Range 16 Terrain Scan Range 14 Terrain Scan Density 160 Armor Coverage 150 Evasion (%) 53 Item Schematics ----------------- None Robot Schematics ------------------ None Fabricated ------------ Nothing Repaired ---------- Nothing Studied --------- None Alien Tech Used ----------------- None Achievements -------------- None Challenges ------------ None Game ------ Seed BackupZioniteHoverbase Manual? 0 Play Time 00:15:37 Cumulative 94.9 hours Start 2026.03.20 @ 17:07:36 End 2026.03.20 @ 17:20:46 Sessions 1 Manual Loads 0 Difficulty Rogue Special Mode None Game No. 82 Rogue 37 Adventurer 45 Explorer 0 Win Type - Total 3 Types 2/0/0/1/0/0/0/0/0/0 Lore% 58 Gallery% 49 Achievement% 36 Wizard Run 0 Options --------- Layout 0 ASCII 0 Keyboard 1 Movement Numpad Keybinds 0 Fullscreen 1 Font 24/Smallcaps Map View 76x50 Zoom Use 0% Tactical HUD 1 Map Filters NONE Filters NONE Steam 1 RUN: 7e66c920-c3a4-4058-b048-75881d3962ed